[Event "XVI Gran Hotel Bali 2017"]
[Site "Benidorm"]
[Date "2017.12.05"]
[Round "6"]
[White "Fernandez Barrera, Victor"]
[Black "Olcum, Ahmet"]
[Result "1-0"]
[ECO "A41"]
[WhiteElo "2300"]
[BlackElo "2231"]
[Annotator "NA RC"]
[PlyCount "111"]
[EventDate "2017.??.??"]
[EventType "swiss"]
[EventCountry "ESP"]
[SourceTitle "playchess.com"]
[Source "ChessBase"]
[SourceQuality "1"]
[TimeControl "5400+30"]

1. d4 {[%emt 0:00:00]} d6 {[%emt 0:06:11]} 2. Nf3 {[%emt 0:00:00]} g6 {[%emt 0:00:30]} 3. c4 {[%emt 0:00:00]} Bg7 {[%emt 0:00:12]} 4. Nc3 {[%emt 0:00:16]} Nd7 {[%emt 0:01:32]} 5. g3 {[%emt 0:02:08]} e5 {[%emt 0:00:13]} 6. Bg2 {[%emt 0:01:46]} Ne7 {[%emt 0:00:02]} 7. O-O {[%emt 0:01:01]} O-O {[%emt 0:00:02]} 8. dxe5 {[%emt 0:03:07]} dxe5 {[%emt 0:01:13] A41: 1 d4 d6: Tartakower System and Modern Defence} 9. Qc2 {[%emt 0:01:01]} Nf5 {[%emt 0:01:13] LiveBook: 39 Games} 10. Rd1 {[%emt 0:02:54]} c6 {[%emt 0:04:25]} 11. Ne4 {[%emt 0:03:35]} Qe7 {[%emt 0:13:19]} 12. c5 {[%emt 0:07:20]} h6 {[%emt 0:04:23]} 13. e3 $146 {[%emt 0:06:42]} ({Predecessor:} 13. a4 Nf6 14. Nxf6+ Qxf6 15. Bd2 Nd4 16. Nxd4 exd4 {1-0 (37) Schnitzspan,L (2311)-Rotstein,A (2529) Bad Homburg 2011}) 13... Re8 {[%emt 0:19:21]} 14. b3 {[%emt 0:20:21]} Bf8 {[%emt 0:04:04]} (14... Nf6 $142) 15. Ba3 {[%emt 0:02:15]} Nf6 {[%emt 0:10:58]} 16. Nxf6+ {[%emt 0:06:58]} Qxf6 {[%emt 0:00:01]} 17. Nd2 {[%emt 0:00:11]} Ng7 {[%emt 0:03:13]} 18. Ne4 {[%emt 0:00:40]} Qe7 {[%emt 0:01:42]} 19. Qc3 {[%emt 0:01:59]} Bf5 {[%emt 0:06:56]} 20. Nd6 {[%emt 0:00:47]} Red8 {[%emt 0:00:08]} 21. Bb2 {[%emt 0:07:54]} f6 {[%emt 0:04:39]} 22. b4 {[%emt 0:00:05]} Qc7 {[%emt 0:04:04]} 23. Nxf5 {[%emt 0:06:29]} Nxf5 {[%emt 0:00:08]} 24. h4 {[%emt 0:03:53]} h5 {[%emt 0:01:59]} 25. Bh3 {[%emt 0:01:50]} Rxd1+ {[%emt 0:01:24]} 26. Rxd1 {[%emt 0:00:02]} Rd8 {[%emt 0:00:01]} 27. Rd3 {[%emt 0:01:53]} Be7 {[%emt 0:02:40]} 28. e4 $14 {[%emt 0:01:47]} Rxd3 {[%emt 0:06:12]} 29. Qxd3 {[%emt 0:00:08]} Ng7 {[%emt 0:02:06]} 30. Bc1 {[%emt 0:03:37]} a5 {[%emt 0:01:37]} 31. a3 {[%emt 0:00:20]} axb4 {[%emt 0:00:01]} 32. axb4 {[%emt 0:00:06]} b6 {[%emt 0:00:13]} 33. Be3 {[%emt 0:02:54]} bxc5 {[%emt 0:00:02]} 34. bxc5 {[%emt 0:02:59]} Kh7 {[%emt 0:01:24]} 35. Qa6 {[%emt 0:06:44]} f5 {[%emt 0:00:29]} 36. exf5 {[%emt 0:01:33]} Nxf5 {[%emt 0:01:11]} 37. Bxf5 {[%emt 0:00:17]} gxf5 {[%emt 0:00:01]} 38. Qc4 {[%emt 0:00:30]} Kg7 {[%emt 0:01:07]} 39. Qe6 {[%emt 0:00:01]} f4 {[%emt 0:00:26]} 40. gxf4 {[%emt 0:00:17]} Bxh4 {[%emt 0:00:26]} 41. fxe5 {[%emt 0:00:37]} Qe7 {[%emt 0:00:34]} 42. Qh6+ {[%emt 0:00:21]} Kf7 {[%emt 0:00:23]} 43. Qxh5+ {[%emt 0:00:23]} Ke6 {[%emt 0:00:01]} 44. Qg6+ {[%emt 0:01:33]} Kxe5 {[%emt 0:00:52]} 45. Qxc6 {[%emt 0:01:13]} Bf6 {[%emt 0:00:50]} 46. Qf3 {[%emt 0:00:34]} Ke6 {[%emt 0:00:27]} 47. Qe4+ {[%emt 0:00:28]} Kd7 {[%emt 0:00:24]} 48. Qxe7+ {[%emt 0:01:14]} Bxe7 {[%emt 0:00:01]} 49. Kg2 {[%emt 0:00:12]} Kc6 {[%emt 0:00:25]} 50. Kg3 {[%emt 0:00:41]} Bxc5 {[%emt 0:00:11]} 51. Bxc5 {[%emt 0:00:16]} Kxc5 {[%emt 0:00:02]} 52. Kg4 {[%emt 0:00:18]} Kd6 {[%emt 0:00:02]} 53. Kf5 {[%emt 0:00:23]} Ke7 {[%emt 0:00:01]} 54. Kg6 {[%emt 0:00:07]} Kf8 {[%emt 0:00:13]} 55. f3 {[%emt 0:00:30]} Kg8 {[%emt 0:00:12]} 56. f4 {[%emt 0:00:07]} 1-0

[Event "XVI Gran Hotel Bali 2017"]
[Site "Benidorm"]
[Date "2017.12.05"]
[Round "6"]
[White "Olhovik, Andrei"]
[Black "Saenz Narciso, Miguel Angel"]
[Result "1/2-1/2"]
[ECO "A58"]
[WhiteElo "2299"]
[BlackElo "2228"]
[Annotator "NA RC"]
[PlyCount "62"]
[EventDate "2017.??.??"]
[EventType "swiss"]
[EventCountry "ESP"]
[SourceTitle "playchess.com"]
[Source "ChessBase"]
[SourceQuality "1"]
[TimeControl "5400+30"]

{[%evp 8,50,29,41,55,48,70,33,41,32767,61,29,26,29,45,20,32767,27,32767,32767,32767,47,53,57,56,17,20,32767,32767,0,43,0,23,31,41,32767,32767,23,32767,32767,32767,32767,32767,32767,43]} 1. d4 {[%emt 0:00:00]} Nf6 {[%emt 0:00:12]} 2. c4 {[%emt 0:00:00]} c5 {[%emt 0:00:11]} 3. d5 {[%emt 0:00:10]} b5 {[%emt 0:00:09]} 4. cxb5 {[%emt 0:00:20]} a6 {[%emt 0:00:05]} 5. bxa6 {[%emt 0:00:04]} g6 {[%emt 0:00:05]} 6. Nc3 {[%emt 0:00:05]} Bxa6 {[%emt 0:00:12]} 7. Nf3 {[%emt 0:00:06]} Bg7 {[%emt 0:00:19]} 8. Nd2 {[%emt 0:00:20] A58: Benko/Volga Gambit: Lines with 5 bxa6} (8. e4 Bxf1 9. Kxf1 d6 10. g3 O-O 11. Kg2 Na6 12. Qe2 Qb6 13. Rd1 Qb7 14. Rb1 Nd7 15. Bg5 Rfe8 16. a3 Nc7 17. Qc2 Nb6 18. a4 Rac8 19. b3 e6 20. dxe6 Nxe6 {1-0 (27) Jakovenko,D (2714)-Zvjaginsev,V (2673) Moscow 2016}) 8... O-O {[%emt 0:03:59]} (8... e6 $11) 9. e4 {[%emt 0:00:10]} Bxf1 {[%emt 0:01:43]} 10. Nxf1 {[%emt 0:00:07]} Qa5 {[%emt 0:05:52]} 11. Bd2 {[%emt 0:00:29]} d6 {[%emt 0:05:47]} 12. Ne3 {[%emt 0:02:38] LiveBook: 10 Games} Qa6 {[%emt 0:00:37]} 13. Qe2 {[%emt 0:00:23]} Nbd7 {[%emt 0:01:37]} 14. Qxa6 {[%emt 0:10:36]} Rxa6 {[%emt 0:00:06]} 15. Ke2 $146 {[%emt 0:07:32]} ({Predecessor:} 15. Kd1 Rb8 16. Kc2 Nb6 17. a4 Nfd7 18. a5 Nc8 {1-0 (31) Reshetkov,K (2138)-Shteinberg,B (2230) Odessa 2008}) 15... Rb8 {[%emt 0:05:50]} 16. Rab1 {[%emt 0:01:09]} Nh5 {[%emt 0:05:23]} 17. Ned1 {[%emt 0:11:32]} Ne5 {[%emt 0:11:39]} 18. f3 {[%emt 0:16:12]} Nc4 {[%emt 0:03:37]} 19. Kd3 {[%emt 0:03:58]} Nxd2 {[%emt 0:04:57]} (19... Bxc3 $5 20. Nxc3 Rxb2 $11) 20. Kxd2 {[%emt 0:00:46]} Bd4 {[%emt 0:06:00]} 21. Kc2 {[%emt 0:05:34]} f5 {[%emt 0:01:16]} 22. Re1 {[%emt 0:03:43]} Kf7 {[%emt 0:03:58]} 23. a4 {[%emt 0:06:53]} fxe4 {[%emt 0:01:28]} 24. fxe4 {[%emt 0:01:37]} Nf6 {[%emt 0:00:18]} 25. b3 {[%emt 0:00:59]} Be5 $14 {[%emt 0:02:33]} 26. g3 {[%emt 0:04:20]} Rb4 {[%emt 0:00:28]} 27. Re2 {[%emt 0:08:22]} Ra8 {[%emt 0:01:09]} 28. Kd3 {[%emt 0:02:17]} Rab8 {[%emt 0:04:17]} 29. Kc2 {[%emt 0:03:19]} Ra8 {[%emt 0:01:34]} 30. Kd3 {[%emt 0:00:57]} Rab8 {[%emt 0:02:17]} 31. Kc2 {[%emt 0:00:35]} Ra8 {[%emt 0:01:20]} 1/2-1/2

[Event "XVI Gran Hotel Bali 2017"]
[Site "Benidorm"]
[Date "2017.12.05"]
[Round "6"]
[White "Iglesias, Jorge"]
[Black "Levay, Sorin"]
[Result "1-0"]
[ECO "A30"]
[WhiteElo "2291"]
[BlackElo "2196"]
[Annotator "NA RC"]
[PlyCount "69"]
[EventDate "2017.??.??"]
[EventType "swiss"]
[EventCountry "ESP"]
[SourceTitle "playchess.com"]
[Source "ChessBase"]
[SourceQuality "1"]
[TimeControl "5400+30"]

1. c4 {[%emt 0:00:00]} c5 {[%emt 0:00:09]} 2. Nf3 {[%emt 0:00:00]} Nc6 {[%emt 0:00:07]} 3. Nc3 {[%emt 0:00:00]} g6 {[%emt 0:00:09]} 4. e3 {[%emt 0:00:48]} Bg7 {[%emt 0:00:10]} 5. d4 {[%emt 0:00:46]} d6 {[%emt 0:00:09]} 6. Be2 {[%emt 0:01:27]} Nh6 {[%emt 0:00:12] A35: Symmetrical English: 2 Nc3 Nc6 3 Nf3} (6... f5 7. O-O Nf6 8. d5 Nb4 9. a3 Na6 10. Rb1 O-O 11. b4 Kh8 12. Qb3 b6 13. Bb2 Nc7 14. Rfd1 {1-0 (53) Kramnik,V (2783)-Kamsky,G (2683) Sochi 2015}) 7. d5 {[%emt 0:08:29] LiveBook: 9 Games} Nb8 {[%emt 0:04:16]} 8. h3 {[%emt 0:07:12]} O-O {[%emt 0:00:37]} 9. O-O {[%emt 0:00:30]} Na6 $146 {[%emt 0:00:13]} ({Predecessor:} 9... a6 10. a3 e5 11. dxe6 fxe6 12. e4 Nc6 13. Be3 Nf7 14. Qd2 {0-1 (43) Llorente,J-Rosabal,Y (2268) Granma 1999}) 10. e4 {[%emt 0:03:00]} Nc7 {[%emt 0:01:14]} 11. Bf4 {[%emt 0:03:25]} f6 {[%emt 0:00:34]} 12. Re1 {[%emt 0:05:04]} Nf7 {[%emt 0:00:08]} 13. Bf1 {[%emt 0:00:58]} a6 {[%emt 0:00:49]} 14. Rb1 {[%emt 0:03:58]} b6 {[%emt 0:31:06]} 15. a3 {[%emt 0:02:14]} a5 {[%emt 0:02:14]} 16. b3 {[%emt 0:09:49]} Bd7 {[%emt 0:00:51]} 17. Nb5 {[%emt 0:08:48]} Nxb5 {[%emt 0:01:19]} 18. cxb5 {[%emt 0:00:09]} Qe8 {[%emt 0:00:25]} 19. a4 {[%emt 0:01:09]} Qb8 {[%emt 0:01:22]} 20. Rc1 {[%emt 0:00:38]} Qa7 {[%emt 0:00:25]} 21. Nd2 {[%emt 0:07:34]} Rad8 {[%emt 0:00:22]} 22. Nc4 {[%emt 0:00:51]} Qb7 {[%emt 0:02:38]} 23. Be2 {[%emt 0:06:18]} Kh8 {[%emt 0:11:07]} 24. Bg4 {[%emt 0:02:45]} Be8 {[%emt 0:00:11]} 25. h4 {[%emt 0:03:45]} Qb8 {[%emt 0:02:40]} 26. Be6 {[%emt 0:03:53]} h5 {[%emt 0:04:06]} 27. Rc3 {[%emt 0:02:30]} g5 {[%emt 0:04:34]} 28. Bd2 {[%emt 0:02:00]} g4 {[%emt 0:01:57]} 29. f3 $18 {[%emt 0:01:17]} Bd7 {[%emt 0:04:28]} 30. fxg4 {[%emt 0:04:34]} Bxe6 {[%emt 0:00:07]} 31. dxe6 {[%emt 0:00:16]} Ne5 {[%emt 0:00:08]} 32. Nxe5 {[%emt 0:03:50]} dxe5 {[%emt 0:00:15]} 33. g5 {[%emt 0:00:19]} fxg5 {[%emt 0:01:51]} 34. Qxh5+ {[%emt 0:01:07]} Kg8 {[%emt 0:00:03]} 35. Qxg5 {[%emt 0:00:48]} 1-0

[Event "XVI Gran Hotel Bali 2017"]
[Site "Benidorm"]
[Date "2017.12.05"]
[Round "6"]
[White "Ayats Llobera, Gerard"]
[Black "Alvarez Morales, Miguel"]
[Result "1-0"]
[ECO "B04"]
[WhiteElo "2285"]
[BlackElo "2156"]
[Annotator "NA RC"]
[PlyCount "101"]
[EventDate "2017.??.??"]
[EventType "swiss"]
[EventCountry "ESP"]
[SourceTitle "playchess.com"]
[Source "ChessBase"]
[SourceQuality "1"]
[TimeControl "5400+30"]

1. e4 {[%emt 0:00:00]} Nf6 {[%emt 0:00:11]} 2. e5 {[%emt 0:00:10]} Nd5 {[%emt 0:00:06]} 3. d4 {[%emt 0:00:04]} d6 {[%emt 0:00:06]} 4. Nf3 {[%emt 0:02:14]} Nc6 {[%emt 0:00:26]} 5. c4 {[%emt 0:17:22] LiveBook: 261 Games} Nb6 {[%emt 0:00:02]} 6. exd6 {[%emt 0:00:06]} exd6 {[%emt 0:00:04]} 7. Be3 {[%emt 0:00:14] B04: Aljechin-Verteidigung (Moderne Variante)} (7. Be2 Be7 8. O-O O-O 9. h3 Bf6 10. Nc3 Re8 11. Re1 Bf5 12. a3 d5 13. c5 Nc8 14. Bf4 N8e7 15. Bf1 Qd7 16. b4 Ng6 17. Rxe8+ Rxe8 18. Bg3 Be4 {0-1 (60) Grigoriants,S (2576)-Nakamura,H (2786) chess.com INT 2017}) 7... Bg4 {[%emt 0:00:08]} 8. h3 {[%emt 0:01:08]} Bh5 {[%emt 0:00:16]} 9. Nbd2 {[%emt 0:09:39]} Bg6 $146 {[%emt 0:02:36]} ({Vorgänger:} 9... Be7 10. Be2 O-O 11. Nh2 Bg6 12. O-O Nb4 13. a3 Nc2 14. Rc1 Nxe3 15. fxe3 {0-1 (46) Voronin,M (1986)-Sedenko,A (2047) Voronezh 2010}) 10. a3 {[%emt 0:02:21]} a5 {[%emt 0:01:34]} 11. d5 {[%emt 0:00:46]} Nb8 {[%emt 0:00:42]} 12. Nb3 {[%emt 0:16:46]} Be7 {[%emt 0:01:02]} 13. Bd3 {[%emt 0:00:45]} Bf6 {[%emt 0:00:38]} 14. Nbd4 {[%emt 0:02:48]} Na6 {[%emt 0:01:42]} 15. O-O {[%emt 0:07:03]} O-O {[%emt 0:01:23]} 16. b3 {[%emt 0:03:48]} Bxd3 {[%emt 0:02:23]} 17. Qxd3 {[%emt 0:01:24]} Nc5 {[%emt 0:00:13]} 18. Qc2 {[%emt 0:00:22]} a4 {[%emt 0:00:37]} 19. b4 {[%emt 0:07:56]} Nb3 $1 {[%emt 0:02:48]} 20. Rad1 {[%emt 0:00:18]} Nxd4 {[%emt 0:00:14]} 21. Nxd4 {[%emt 0:00:54]} Bg5 {[%emt 0:03:10]} 22. f4 {[%emt 0:05:49]} Bf6 {[%emt 0:02:19]} 23. Nf5 {[%emt 0:00:09]} Re8 {[%emt 0:01:19]} 24. g4 {[%emt 0:01:58]} (24. Rf3 $16) 24... g6 {[%emt 0:01:09]} 25. Nh6+ {[%emt 0:01:27]} Kg7 {[%emt 0:00:15]} 26. Bxb6 {[%emt 0:00:17]} cxb6 {[%emt 0:00:11]} 27. g5 {[%emt 0:00:13]} Bxg5 {[%emt 0:00:58]} 28. Nxf7 {[%emt 0:00:32]} Kxf7 {[%emt 0:00:11]} 29. fxg5+ {[%emt 0:00:01]} Kg7 {[%emt 0:00:58]} 30. Rf6 {[%emt 0:01:20]} Re5 {[%emt 0:00:31]} 31. Rdf1 {[%emt 0:02:49]} Rxg5+ {[%emt 0:00:43]} 32. Kh2 {[%emt 0:01:32]} Qxf6 {[%emt 0:11:05]} 33. Rxf6 {[%emt 0:00:02]} Kxf6 {[%emt 0:00:04]} 34. Qf2+ {[%emt 0:00:20]} Rf5 {[%emt 0:03:24]} 35. Qxb6 {[%emt 0:04:13]} Rf8 {[%emt 0:01:29]} 36. Qxd6+ {[%emt 0:01:52]} Kg7 {[%emt 0:00:13]} 37. Qg3 {[%emt 0:01:20]} Rf3 {[%emt 0:03:14]} 38. Qe5+ {[%emt 0:00:51]} Kh6 {[%emt 0:00:41]} 39. d6 {[%emt 0:01:48]} R8f4 {[%emt 0:02:44]} 40. Qd5 {[%emt 0:04:04]} Rf5 {[%emt 0:22:29]} 41. Qe4 $11 {[%emt 0:00:17]} (41. Qd1 $18) 41... R5f4 {[%emt 0:00:25]} 42. Qd5 {[%emt 0:01:06]} Rf5 {[%emt 0:00:04]} 43. Qd2+ {[%emt 0:00:42]} g5 {[%emt 0:02:05]} 44. Kg2 {[%emt 0:00:25]} Rf7 {[%emt 0:09:06]} 45. d7 {[%emt 0:00:21]} Rf2+ {[%emt 0:00:09]} 46. Qxf2 {[%emt 0:00:01]} Rxd7 {[%emt 0:00:05]} 47. Qf8+ {[%emt 0:00:28]} Kg6 {[%emt 0:00:25]} 48. Qe8+ {[%emt 0:00:04]} Rf7 {[%emt 0:00:01]} 49. Qxa4 {[%emt 0:00:06]} h5 {[%emt 0:00:07]} 50. Qe8 {[%emt 0:00:24]} Kf6 {[%emt 0:00:02]} 51. c5 {[%emt 0:00:16]} 1-0

[Event "XVI Gran Hotel Bali 2017"]
[Site "Benidorm"]
[Date "2017.12.05"]
[Round "6"]
[White "Serna Lara, Sergio"]
[Black "Ibanez Aullana, Ramon"]
[Result "1-0"]
[ECO "A81"]
[WhiteElo "2224"]
[BlackElo "2295"]
[Annotator "NA RC"]
[PlyCount "49"]
[EventDate "2017.??.??"]
[EventType "swiss"]
[EventCountry "ESP"]
[SourceTitle "playchess.com"]
[Source "ChessBase"]
[SourceQuality "1"]
[TimeControl "5400+30"]

1. d4 {[%emt 0:02:19]} f5 {[%emt 0:05:19]} 2. g3 {[%emt 0:01:57]} Nf6 {[%emt 0:00:58]} 3. Bg2 {[%emt 0:00:10]} g6 {[%emt 0:00:25]} 4. c3 {[%emt 0:05:01]} Bg7 {[%emt 0:01:29]} 5. Qb3 {[%emt 0:00:14]} c6 {[%emt 0:01:29]} 6. Nh3 {[%emt 0:01:06]} Na6 {[%emt 0:13:37]} 7. Nd2 {[%emt 0:06:50]} Nc7 {[%emt 0:05:32]} 8. Ng5 {[%emt 0:07:52]} Rf8 {[%emt 0:11:16]} 9. e4 {[%emt 0:11:16]} fxe4 {[%emt 0:23:10]} (9... h6 $14) 10. Ndxe4 {[%emt 0:02:38]} h6 {[%emt 0:05:14]} 11. Nh3 {[%emt 0:20:30]} Ne6 {[%emt 0:01:31]} 12. O-O {[%emt 0:01:41]} Qa5 {[%emt 0:05:12]} 13. Nxf6+ {[%emt 0:11:16]} exf6 {[%emt 0:03:04]} 14. d5 {[%emt 0:01:57]} cxd5 {[%emt 0:03:02]} 15. Nf4 {[%emt 0:01:11]} Kf7 {[%emt 0:03:13]} 16. Bxd5 $18 {[%emt 0:01:59]} ({Bloß nicht} 16. Nxd5 Kg8 $18) ({Viel schwächer ist} 16. Qxd5 $6 Qxd5 17. Bxd5 (17. Nxd5 d6 $16) 17... g5 $16) 16... Re8 {[%emt 0:00:40]} 17. Be3 {[%emt 0:03:13]} Rb8 {[%emt 0:01:36]} 18. Rfe1 {[%emt 0:00:59]} b6 {[%emt 0:02:05]} 19. Rad1 {[%emt 0:01:44]} Re7 {[%emt 0:02:34]} 20. Qc2 {[%emt 0:08:05]} f5 {[%emt 0:00:45]} 21. g4 {[%emt 0:00:35]} Bb7 {[%emt 0:01:07]} 22. Nxg6 {[%emt 0:01:52]} fxg4 {[%emt 0:02:27]} 23. Qf5+ {[%emt 0:02:35]} Ke8 {[%emt 0:00:15]} 24. Nxe7 {[%emt 0:00:44]} Kxe7 {[%emt 0:00:09]} 25. b4 {[%emt 0:00:15]} 1-0

[Event "XVI Gran Hotel Bali 2017"]
[Site "Benidorm"]
[Date "2017.12.05"]
[Round "6"]
[White "Picazo Lopez, Juan Antonio"]
[Black "Moreno Ibanez, Miguel"]
[Result "1-0"]
[ECO "A56"]
[WhiteElo "2204"]
[BlackElo "2272"]
[Annotator "NA RC"]
[PlyCount "121"]
[EventDate "2017.??.??"]
[EventType "swiss"]
[EventCountry "ESP"]
[SourceTitle "playchess.com"]
[Source "ChessBase"]
[SourceQuality "1"]
[TimeControl "5400+30"]

1. d4 {[%emt 0:02:46]} Nf6 {[%emt 0:01:43]} 2. c4 {[%emt 0:01:27]} c5 {[%emt 0:00:36]} 3. d5 {[%emt 0:02:40]} g6 {[%emt 0:00:30]} 4. Nc3 {[%emt 0:02:40]} Bg7 {[%emt 0:00:58]} 5. g3 {[%emt 0:02:27]} (5. e4 $14) 5... O-O {[%emt 0:01:35]} 6. Bg2 {[%emt 0:00:05]} d6 {[%emt 0:01:21]} 7. e4 {[%emt 0:03:53]} e6 {[%emt 0:05:50]} 8. Nge2 {[%emt 0:04:20]} exd5 {[%emt 0:04:26]} 9. cxd5 {[%emt 0:11:08]} Re8 {[%emt 0:01:17]} 10. a4 {[%emt 0:00:37] A60: Modern Benoni: Early Divergences} Na6 {[%emt 0:01:37] LiveBook: 8 Games} 11. O-O {[%emt 0:00:19]} Nb4 {[%emt 0:01:44]} (11... c4 12. Be3 Ng4 13. Bd4 Ne5 14. Qd2 Nb4 15. Nb5 Nbd3 16. f4 Ng4 17. Bxg7 Kxg7 {1-0 (62) Li,C (2720)-Szabo,G (2549) chess.com INT 2017}) 12. h3 {[%emt 0:03:31]} b6 {[%emt 0:04:10]} 13. Bg5 {[%emt 0:02:53]} h6 {[%emt 0:05:09]} 14. Be3 {[%emt 0:01:00]} Ba6 {[%emt 0:00:55]} 15. Qd2 {[%emt 0:06:53]} Kh7 {[%emt 0:05:41] [#]} 16. g4 $146 {[%emt 0:10:45]} (16. Rfd1 $11 {keeps the balance.}) ({Predecessor:} 16. Rfe1 Qe7 17. Nc1 Rad8 {1-0 (44) Burmakin,V (2550)-Mojzis,J (2250) Schwarzach 1997}) 16... Nd7 {[%emt 0:09:29]} 17. f4 {[%emt 0:03:38]} (17. Nb5 $11) 17... f5 {[%emt 0:06:00]} 18. g5 {[%emt 0:04:37]} Bd3 {[%emt 0:06:39]} 19. h4 {[%emt 0:01:30]} Nf8 {[%emt 0:10:10]} 20. Ng3 {[%emt 0:02:23]} h5 {[%emt 0:13:01]} 21. Kh1 {[%emt 0:03:58]} Qd7 {[%emt 0:04:33]} 22. Bh3 {[%emt 0:00:51]} Qf7 {[%emt 0:02:31]} 23. Rg1 {[%emt 0:05:35]} ({Lieber} 23. Bg1 $14) 23... Bxe4+ {[%emt 0:05:01]} 24. Ncxe4 $15 {[%emt 0:04:34]} (24. Ngxe4 $16 fxe4 25. f5) 24... Qxd5 {[%emt 0:02:14]} ({Weaker is} 24... fxe4 25. f5 $14) 25. Qe2 {[%emt 0:08:24]} Rxe4 {[%emt 0:02:12]} 26. Nxe4 {[%emt 0:00:39]} Qxe4+ {[%emt 0:03:30]} 27. Bg2 {[%emt 0:00:11]} Qe8 {[%emt 0:00:02]} 28. Bxa8 {[%emt 0:00:35]} Qxa8+ {[%emt 0:00:01]} 29. Qg2 {[%emt 0:00:14]} Qe4 {[%emt 0:01:22]} 30. Qxe4 {[%emt 0:04:29]} fxe4 {[%emt 0:00:01]} 31. Rad1 {[%emt 0:00:16]} d5 {[%emt 0:00:22]} 32. b3 {[%emt 0:00:37]} d4 {[%emt 0:00:43]} 33. Bd2 {[%emt 0:00:35]} Nd5 {[%emt 0:00:58]} 34. Rge1 {[%emt 0:01:20]} e3 {[%emt 0:00:11]} 35. Bc1 {[%emt 0:00:06]} Ne6 {[%emt 0:00:37]} 36. Kg2 {[%emt 0:00:31]} Nc3 {[%emt 0:00:32]} 37. Kf3 {[%emt 0:00:59]} Nxd1 {[%emt 0:00:42]} 38. Rxd1 {[%emt 0:00:00]} Kg8 39. Ke4 {[%emt 0:00:15]} Kf7 {[%emt 0:01:01]} 40. Rf1 {[%emt 0:00:31]} Ke7 {[%emt 0:00:28]} 41. Kd3 {[%emt 0:03:00]} Nd8 {[%emt 0:00:36]} 42. f5 {[%emt 0:00:52]} gxf5 {[%emt 0:00:01]} 43. Rxf5 {[%emt 0:00:05]} Ke6 {[%emt 0:00:11]} 44. Rf1 {[%emt 0:02:08]} Nf7 {[%emt 0:00:06]} 45. a5 {[%emt 0:00:50]} b5 {[%emt 0:00:28]} 46. Ba3 {[%emt 0:01:06]} Ne5+ {[%emt 0:00:20]} 47. Ke4 {[%emt 0:00:31]} e2 {[%emt 0:00:36]} 48. Re1 {[%emt 0:00:14]} d3 {[%emt 0:00:04]} 49. Bc1 {[%emt 0:00:32]} c4 {[%emt 0:00:17]} 50. bxc4 {[%emt 0:00:01]} bxc4 {[%emt 0:00:07]} 51. Bd2 {[%emt 0:00:05]} c3 {[%emt 0:02:47]} 52. Bxc3 {[%emt 0:00:46]} Nf3 {[%emt 0:00:30]} 53. Kxd3 {[%emt 0:00:38]} Bxc3 {[%emt 0:00:32]} 54. Rxe2+ {[%emt 0:00:01]} Be5 {[%emt 0:00:18]} 55. g6 {[%emt 0:00:06]} Kf5 {[%emt 0:00:43]} 56. Rf2 {[%emt 0:00:35]} Kg4 {[%emt 0:00:31]} 57. Ke4 {[%emt 0:00:25]} Nxh4 {[%emt 0:00:28]} 58. Rg2+ {[%emt 0:01:06]} Kh3 {[%emt 0:00:32]} 59. Kxe5 {[%emt 0:00:11]} Kxg2 60. g7 {[%emt 0:00:10]} Nf3+ {[%emt 0:01:00]} 61. Ke4 1-0

[Event "XVI Gran Hotel Bali 2017"]
[Site "Benidorm"]
[Date "2017.12.05"]
[Round "6"]
[White "Cubas Pons, Juan Miguel"]
[Black "Lornye, Pylyp"]
[Result "0-1"]
[ECO "E94"]
[WhiteElo "2187"]
[BlackElo "2264"]
[Annotator "NA RC"]
[PlyCount "76"]
[EventDate "2017.??.??"]
[EventType "swiss"]
[EventCountry "ESP"]
[SourceTitle "playchess.com"]
[Source "ChessBase"]
[SourceQuality "1"]
[TimeControl "5400+30"]

1. d4 {[%emt 0:00:00]} g6 {[%emt 0:00:08]} 2. c4 {[%emt 0:00:00]} Nf6 {[%emt 0:00:08]} 3. Nc3 {[%emt 0:00:00]} Bg7 {[%emt 0:00:07]} 4. e4 {[%emt 0:00:06]} d6 {[%emt 0:00:08]} 5. Nf3 {[%emt 0:00:32]} O-O {[%emt 0:00:11]} 6. Be2 {[%emt 0:00:03]} e5 {[%emt 0:00:24] LiveBook: 29540 Games} 7. O-O {[%emt 0:01:06]} exd4 {[%emt 0:00:26]} 8. Nxd4 {[%emt 0:00:29]} Re8 {[%emt 0:00:12]} 9. f3 {[%emt 0:01:55]} Nc6 {[%emt 0:00:33]} 10. Nb3 {[%emt 0:02:20] E94: King's Indian: Classical: 6 Be2 e5 7 0-0: Various Black 7th moves} (10. Be3 $14 Nh5 11. Qd2 Nf4 12. Rfd1 Nxd4 13. Bxd4 Bxd4+ 14. Qxd4 Nxe2+ 15. Nxe2 b6 16. Nc3 Bb7 17. Nd5 Bxd5 18. cxd5 Qg5 19. Rac1 Rac8 20. Qd2 Qe5 21. Qd4 Qg5 22. Qd2 Qe5 23. Qd4 Qg5 24. Qd2 {½-½ (24) Mamedyarov,S (2772)-Radjabov,T (2710) Shamkir 2017}) 10... Nh5 {[%emt 0:13:49]} 11. g4 $146 {[%emt 0:03:05]} ({Predecessor:} 11. Nd5 a5 12. a4 h6 13. Rf2 Nf6 14. Bd2 Nxd5 15. cxd5 Nd4 16. Nxa5 c6 17. Nc4 cxd5 18. exd5 {0-1 (40) Vargas Maliqueo,I (2205)-Jorquera Cahuin,M (2296) Santiago de Chile 2007}) 11... Nf6 {[%emt 0:03:50]} 12. Bf4 {[%emt 0:01:37]} h5 {[%emt 0:15:23]} 13. g5 {[%emt 0:00:27]} (13. Bg5 $1 $11) 13... Nh7 {[%emt 0:02:06]} 14. Qd2 {[%emt 0:00:14]} Bh3 {[%emt 0:02:38]} 15. Rfd1 {[%emt 0:01:10]} Ne5 {[%emt 0:05:00]} (15... a5 $11) 16. Qe3 {[%emt 0:07:45]} a5 {[%emt 0:13:57]} 17. c5 {[%emt 0:15:55]} a4 {[%emt 0:00:05]} 18. Nc1 {[%emt 0:00:11]} (18. Nd4 $14) 18... a3 {[%emt 0:05:16]} 19. b4 {[%emt 0:04:29]} Qc8 {[%emt 0:00:27]} 20. Nb3 {[%emt 0:04:26]} dxc5 {[%emt 0:01:56]} 21. Nxc5 {[%emt 0:00:30]} b6 {[%emt 0:01:44]} 22. Nb3 {[%emt 0:00:17]} Be6 {[%emt 0:00:59]} 23. Nd4 {[%emt 0:00:22]} Nc4 {[%emt 0:04:32]} 24. Qf2 {[%emt 0:03:15]} Nb2 {[%emt 0:02:49]} 25. Rd2 {[%emt 0:01:18]} c5 {[%emt 0:00:31]} 26. bxc5 {[%emt 0:01:08]} Qxc5 {[%emt 0:03:42]} 27. Nxe6 {[%emt 0:02:51]} Qxc3 {[%emt 0:03:52]} ({Nicht} 27... Qxf2+ 28. Kxf2 Bxc3 29. Rc2 $16) 28. Nxg7 {[%emt 0:00:27]} Nd3 $1 {[%emt 0:00:27]} 29. Rxd3 {[%emt 0:05:29]} Qxa1+ {[%emt 0:00:04]} 30. Rd1 {[%emt 0:00:07]} Qxg7 {[%emt 0:00:07]} 31. Qxb6 {[%emt 0:00:31]} Nf8 {[%emt 0:00:42]} 32. Bb5 {[%emt 0:00:41]} Qb2 {[%emt 0:01:53]} 33. Bc7 {[%emt 0:13:53]} Rec8 {[%emt 0:01:19]} 34. Bf1 {[%emt 0:06:25]} Ne6 {[%emt 0:00:42]} 35. Rb1 {[%emt 0:03:39]} Qxb6+ {[%emt 0:01:55]} 36. Bxb6 {[%emt 0:00:02]} Rab8 {[%emt 0:00:04]} 37. Rb5 {[%emt 0:02:03]} Rc1 {[%emt 0:00:05]} 38. Kf2 $19 {[%emt 0:00:29]} Rc2+ {[%emt 0:00:06]} 0-1